Cogmind - Beta 12 --- EXPLORER MODE // 2023.03.15 @ 06:01:37 Player: Shin Result: Destroyed by H-66 Slayer with Gauss Rifle Performance ------------- Evolutions (5) 2500 Regions Visited (20) 4000 Robots Destroyed (252) 1260 Value Destroyed (9867) 9867 Prototype IDs (53) 1060 Alien Tech Used (0) 0 Bonus (2716) 2716 TOTAL SCORE: 21403 Bonus ------- High Alert Combat Kills 1085 Follower Combat Kills 684 Entered Garrisons 200 Met Data Miner 300 Met Imprinter 300 Was Imprinted 300 Friendly Fire -153 Cogmind --------- Core Integrity 0/1000 Matter 15/300 Energy 79/100 System Corruption 1% Temperature Cool (0) Movement Core (300) Ox5 Location -5/Upper Caves Parts ------- > --- POWER (2) -------- (None) > --- PROPULSION (6) --- (None) > --- UTILITY (8) ------ Advanced Drone Bay (0/2) > --- WEAPON (2) ------- Molecular Deconstructor > --- INVENTORY (5) ---- Experimental Cooling System 0b10 Alert Chip Experimental Thermal Defense Suite Smartbomb Launcher Peak State ------------ > --- POWER ------------ Deuterium Engine > --- PROPULSION ------- Improved Titanium Leg Flexi-carbon Leg Flexi-carbon Leg Improved VSS Leg Armored Huge Wheel > --- UTILITY ---------- Experimental Cooling System Coolant Network Huge Storage Unit Advanced Targeting Computer Kinecellerator Experimental Thermal Defense Suite Experimental Shield Generator > --- WEAPON ----------- Mass Driver Enhanced Gauss Cannon > --- INVENTORY -------- Light Ion Engine Improved Coolant Injector Energy Well Medium Matter Pod Improved Signal Interpreter Encrypted Comm Array 0b10 Alert Chip Makeshift Transmission Jammer Makeshift ECM Suite Improved Reaction Control System Makeshift Cloaking Device Focal Shield Improved Remote Force Field Advanced Dynamic Insulation System Makeshift System Restoration Module Precision Phase Gun KE Penetrator Hypervelocity Coil Gun Long-range Missile Launcher Smartbomb Launcher Phasing Sabre [Rating: 105] Favorites ----------- Power Fission Core Engine Light Angular Momentum Engine Power Core Fission Core Reactor Light Antimatter Reactor Propulsion Carbon-fiber Leg Treads Light Treads Leg Carbon-fiber Leg Wheel Wheel Utility Huge Storage Unit Device Advanced Heat Sink Storage Huge Storage Unit Processor Advanced Targeting Computer Hackware Hacking Suite Protection Core Shielding Weapon Compact Ion Cannon Energy Gun Precision Phase Gun Energy Cannon Compact Ion Cannon Ballistic Gun Autogun Ballistic Cannon Advanced Assault Cannon Launcher Long-range Missile Launcher Special Weapon Molecular Deconstructor Slashing Weapon Katana Special Melee Weapon Datajack Build | -11 -10 -9 -9 -9 -8 -8 -8 -8 -7 -7 -7 -7 -6 -6 -6 -6 -6 -5 -5 -5 ------- Run | Jun Mat Mat Min Exi Min Mat Gar Mat Fac Low Low Dat Pro Fac Low Low Zio Pro Fac Upp Slots Evolved 11 | . 1 2 . . . 2 . . 2 . . . . 2 . . . . 2 . Power 1 | . . . . . . . . . 1 . . . . . . . . . . . Propulsion 4 | . . 2 . . . . . . . . . . . . . . . . 2 . Utility 6 | . 1 . . . . 2 . . 1 . . . . 2 . . . . . . Weapon . | . . . . . . . . . . . . . . . . . . . . . Parts Attached 194 | . 10 15 . . . 19 26 8 16 2 3 . . 20 6 7 7 2 50 3 Power 24 | . 1 1 . . . 3 1 1 4 2 . . . 5 1 . . 1 4 . Engine 14 | . 1 . . . . 2 . . 4 2 . . . 1 . . . . 4 . Core 9 | . . 1 . . . 1 1 1 . . . . . 4 1 . . . . . Reactor 1 | . . . . . . . . . . . . . . . . . . 1 . . Propulsion 58 | . 4 12 . . . 5 5 5 4 . 1 . . 4 . 4 3 . 11 . Treads 10 | . 3 7 . . . . . . . . . . . . . . . . . . Leg 43 | . 1 5 . . . 5 5 5 3 . . . . 4 . 3 3 . 9 . Wheel 5 | . . . . . . . . . 1 . 1 . . . . 1 . . 2 . Hover . | . . . . . . . . . . . . . . . . . . . . . Flight . | . . . . . . . . . . . . . . . . . . . . . Utility 52 | . 4 . . . . 5 5 2 6 . 1 . . 7 3 1 4 1 12 1 Device 36 | . . . . . . 2 2 . 6 . . . . 7 3 . 3 1 11 1 Storage 3 | . 3 . . . . . . . . . . . . . . . . . . . Processor 3 | . 1 . . . . . 1 . . . 1 . . . . . . . . . Hackware 4 | . . . . . . 3 . . . . . . . . . . 1 . . . Protection 6 | . . . . . . . 2 2 . . . . . . . 1 . . 1 . Artifact . | . . . . . . . . . . . . . . . . . . . . . Weapon 60 | . 1 2 . . . 6 15 . 2 . 1 . . 4 2 2 . . 23 2 Energy Gun 2 | . . . . . . . . . . . . . . . . . . . 2 . Energy Cannon 8 | . . . . . . 1 2 . 1 . . . . 3 1 . . . . . Ballistic Gun 14 | . 1 2 . . . 3 2 . . . . . . . . 1 . . 5 . Ballistic Cannon 11 | . . . . . . . 6 . . . 1 . . . . . . . 4 . Launcher 12 | . . . . . . . 4 . . . . . . . 1 1 . . 5 1 Special Weapon 2 | . . . . . . . . . . . . . . . . . . . 1 1 Impact Weapon . | . . . . . . . . . . . . . . . . . . . . . Slashing Weapon 9 | . . . . . . 2 1 . 1 . . . . 1 . . . . 4 . Piercing Weapon . | . . . . . . . . . . . . . . . . . . . . . Special Melee Weapon 2 | . . . . . . . . . . . . . . . . . . . 2 . Unidentified Prototypes 7 | . . . . . . . . . . . . . . . . . . . 6 1 Parts Lost 45 | . . . . . . 2 3 . 9 . 1 . . 2 2 3 . . 23 . Power 6 | . . . . . . . . . 1 . . . . . . . . . 5 . Propulsion 17 | . . . . . . 1 2 . 3 . 1 . . 1 . 2 . . 7 . Utility 18 | . . . . . . 1 1 . 4 . . . . 1 2 1 . . 8 . Weapon 4 | . . . . . . . . . 1 . . . . . . . . . 3 . Highest Loss Streak 5 | . . . . . . 1 1 . 3 . 1 . . 1 2 2 . . 5 . To Critical Strikes . | . . . . . . . . . . . . . . . . . . . . . Average Slot Usage (%) 97 | . 96 99 100 100 100 99 99 94 96 100 99 100 100 99 100 96 100 100 85 6 Engine 5 | . 11 2 . . . 2 4 . 11 14 14 14 14 4 . . . . 4 . Core 5 | . . 7 10 10 10 5 3 8 1 . . . . 7 12 12 12 9 1 . Treads 5 | . 18 29 . . . . . . . . . . . . . . . . . . Leg 23 | . 4 10 40 40 40 32 32 28 25 28 23 21 21 23 25 23 25 25 24 . Device 11 | . . . . . . 14 7 . 16 21 19 14 14 24 25 18 18 18 17 3 Storage 7 | . 12 10 10 10 10 8 8 8 7 7 7 7 7 6 6 6 6 6 4 . Processor 5 | . 10 10 10 10 10 1 . . . . 2 7 7 6 6 6 6 6 4 . Hackware 9 | . . . . . . 15 16 16 14 14 14 14 14 12 12 12 12 12 5 . Protection 5 | . 12 10 10 10 10 . 7 16 3 . . . . . . 3 6 6 3 . Energy Cannon 5 | . . . . . . 2 7 8 12 14 7 7 7 9 11 6 6 6 3 . Ballistic Gun 7 | . 24 20 20 20 20 10 1 . . . . . . . . 5 6 6 1 . Ballistic Cannon 2 | . . . . . . . 6 8 1 . 6 7 7 1 . . . . 2 . Naked Turns 46 | . . . . . . . . . . . . . . . . . . . 2 44 Heaviest Build 142 | 20 90 92 92 92 92 101 108 104 120 120 119 114 114 116 120 121 121 120 142 16 Greatest Support 115 | 20 40 89 60 60 60 60 56 57 60 55 55 42 42 64 62 63 68 68 115 3 Greatest Overweight (x) 40 | . 2 30 1 1 1 2 3 2 11 2 11 2 2 2 1 40 1 1 32 5 Average Overweight (x) 1 | . . 1 1 1 1 1 1 1 1 2 2 2 2 1 1 1 1 1 2 . Largest Inventory Capacity 25 | . 25 25 25 25 25 25 25 25 25 25 25 25 25 25 25 25 25 25 25 5 Average Capacity 24 | . 19 25 25 25 25 25 25 25 25 25 25 25 25 25 25 25 25 25 24 5 Most Carried 25 | . 21 25 25 25 25 25 25 25 25 25 25 24 25 25 25 25 25 25 25 5 Average Carried 23 | . 10 24 25 24 25 24 24 24 23 24 24 24 24 24 24 24 24 24 22 4 Final Capacity 25 | 10 25 25 25 25 25 25 25 25 25 25 25 25 25 25 25 25 25 25 5 5 Final Carried 25 | 7 21 25 25 25 25 24 25 25 24 25 24 24 25 25 25 25 25 25 5 5 Class Distribution -------------------- 99% | Hacker-Mutant Dominant Class ---------------- Hacker-Mutant | -10/Materials Hacker-Mutant | -9/Materials Hacker-Mutant | -9/Mines Hacker-Mutant | -9/Exiles Hacker-Mutant | -8/Mines Hacker-Mutant | -8/Materials Hacker-Mutant | -8/Garrison Hacker-Mutant | -8/Materials Hacker-Mutant | -7/Factory Hacker-Mutant | -7/Lower Caves Hacker-Mutant | -7/Lower Caves Hacker-Mutant | -7/Data Miner Hacker-Mutant | -6/Proximity Caves Hacker-Mutant | -6/Factory Hacker-Mutant | -6/Lower Caves Hacker-Mutant | -6/Lower Caves Hacker-Mutant | -6/Zion Hacker-Mutant | -5/Proximity Caves Hacker-Mutant | -5/Factory Hacker-Mutant | -5/Upper Caves Resources | -11 -10 -9 -9 -9 -8 -8 -8 -8 -7 -7 -7 -7 -6 -6 -6 -6 -6 -5 -5 -5 ----------- Run | Jun Mat Mat Min Exi Min Mat Gar Mat Fac Low Low Dat Pro Fac Low Low Zio Pro Fac Upp Matter Collected 4855 | 197 348 736 33 186 43 556 694 268 178 20 20 . 10 175 105 195 70 55 938 28 Remotely . | . . . . . . . . . . . . . . . . . . . . . Salvage Created 9937 | . 598 1607 . 224 11 1151 1375 232 1160 . . . . 844 447 347 . 133 1769 39 Parts 537 | . 45 100 . 9 3 66 59 12 47 . . . . 38 14 20 . 7 113 4 Haulers Intercepted 8 | . 1 4 . . . 2 . . . . . . . . . . . . 1 . Recyclers Shooed 11 | . . 2 . . . . . . 1 . . . . . . . . . 8 . Parts Field Recycled . | . . . . . . . . . . . . . . . . . . . . . Retrieved Matter . | . . . . . . . . . . . . . . . . . . . . . Parts Self-Destructed . | . . . . . . . . . . . . . . . . . . . . . Prevented . | . . . . . . . . . . . . . . . . . . . . . Kills | -11 -10 -9 -9 -9 -8 -8 -8 -8 -7 -7 -7 -7 -6 -6 -6 -6 -6 -5 -5 -5 ------- Run | Jun Mat Mat Min Exi Min Mat Gar Mat Fac Low Low Dat Pro Fac Low Low Zio Pro Fac Upp Combat Hostiles Destroyed 189 | . 11 23 . . 1 18 32 6 20 . . . . 18 8 10 . 2 39 1 Melee 9 | . . . . . . 6 . . . . . . . 3 . . . . . . Guns 58 | . 11 23 . . 1 11 3 . . . . . . . . 2 . 1 6 . Cannons 82 | . . . . . . 1 21 6 18 . . . . 15 5 5 . 1 10 . AOE 36 | . . . . . . . 7 . 1 . . . . . 3 3 . . 22 . Classes Destroyed 16 | . 5 4 . . . 2 1 . 2 . . . . . . . . . 2 . Worker 14 | . 2 . . . . 1 . . 1 . . . . . . . . . 10 . Builder 8 | . . . . . . . . . 2 . . . . . . . . . 6 . Hauler 8 | . 1 4 . . . 2 . . . . . . . . . . . . 1 . Recycler 12 | . . 3 . . . 1 . . 2 . . . . 1 . . . . 5 . Mechanic 1 | . . . . . . . . . . . . . . . . . . . 1 . Operator 3 | . . 1 . . . 1 . . . . . . . . . . . . 1 . Watcher 16 | . 3 4 . . . 4 . . 1 . . . . 2 . . . . 2 . Swarmer 51 | . 2 3 . . 1 . 5 . 6 . . . . 11 3 3 . . 17 . Grunt 68 | . 9 7 . . . 10 12 3 9 . . . . 3 2 3 . 2 8 . Brawler 5 | . . 3 . . . . 1 . . . . . . . 1 . . . . . Duelist 2 | . . . . . . 1 1 . . . . . . . . . . . . . Protector 1 | . . . . . . . . . . . . . . . . . . . 1 . Sentry 35 | . . 10 . . . 6 10 3 3 . . . . 2 1 . . . . . Specialist 4 | . . . . . . . 1 . . . . . . . . . . . 3 . Hunter 11 | . . . . . . 1 2 . 1 . . . . . 1 . . . 6 . Programmer 8 | . . . . . . . . . 1 . . . . 2 . . . . 4 1 Wasp 3 | . . . . . . . . . . . . . . . . 3 . . . . Thug 2 | . . . . . . . 1 . . . . . . . . 1 . . . . Best Kill Streak 16 | . 3 5 . . 1 3 5 2 5 . . . . 5 7 6 . 2 16 1 Combat Bots Only 9 | . 3 4 . . 1 3 5 2 4 . . . . 5 7 6 . 2 9 1 Max Kills in Single Turn 6 | . 2 2 . . 1 1 3 1 2 . . . . 1 2 3 . 1 6 1 Gunslinging 1 | . 1 1 . . . . . . . . . . . . . . . . . . Exploded 3 | . . . . . . . 3 . 1 . . . . . 2 3 . . 3 . Melee 1 | . . . . . . 1 . . . . . . . 1 . . . . . . Uniques/NPCs Destroyed . | . . . . . . . . . . . . . . . . . . . . . Combat | -11 -10 -9 -9 -9 -8 -8 -8 -8 -7 -7 -7 -7 -6 -6 -6 -6 -6 -5 -5 -5 -------- Run | Jun Mat Mat Min Exi Min Mat Gar Mat Fac Low Low Dat Pro Fac Low Low Zio Pro Fac Upp Damage Taken 9489 | . 215 570 . . 22 751 777 261 1220 . 70 . . 820 186 380 . 20 4085 112 Core 1757 | . 48 54 . . . 127 111 27 170 . 36 . . 145 6 28 . . 977 28 Absorbed by Shields 28 | . . . . . . . 28 . . . . . . . . . . . . . Redirected to Shielding 77 | . 8 10 . . . . 18 7 34 . . . . . . . . . . . Regen/Repaired (Parts) 204 | . . . . . . . . 131 . . . . . 41 . . 32 . . . Core Remaining (%) 77 | 100 80 . . . 86 . . 51 . . . . 70 . . . . 78 . . Volleys Fired 569 | . 43 84 . 15 2 51 99 21 70 . . . . 44 12 21 . 7 98 2 Largest 2 | . 2 2 . 2 2 2 2 2 2 . . . . 2 2 2 . 2 2 1 Hottest 180 | . 40 46 . 46 46 103 123 123 173 . . . . 180 180 180 . 125 147 46 Shots Fired 1015 | . 86 168 . 30 4 100 160 38 117 . . . . 83 22 38 . 14 153 2 Gun 465 | . 86 168 . 30 4 94 24 . . . . . . . . 16 . 7 36 . Cannon 512 | . . . . . . 6 131 38 117 . . . . 83 20 18 . 7 92 . Launcher 37 | . . . . . . . 5 . . . . . . . 2 4 . . 25 1 Special 1 | . . . . . . . . . . . . . . . . . . . . 1 Kinetic 564 | . 86 168 . 30 4 94 60 21 5 . . . . . . 16 . 7 73 . Thermal 413 | . . . . . . 6 95 17 112 . . . . 83 20 18 . 7 55 . Explosive 37 | . . . . . . . 5 . . . . . . . 2 4 . . 25 1 Electromagnetic . | . . . . . . . . . . . . . . . . . . . . . Robot Hit Streak 30 | . 28 30 . 26 1 23 22 21 22 . . . . 20 25 10 . 7 26 7 Robot Miss Streak 4 | . 1 1 . 1 2 4 4 1 2 . . . . 3 . 2 . 2 1 . Penetration Max 2 | . . . . . . 1 . . . . . . . . . 2 . . 1 . Secondary Targets 4 | . 1 2 . . . 1 . . . . . . . . . . . . . . Max Gunslinging Chain 1 | . 1 1 . . . 1 . . . . . . . . . . . . . . Shots Hit Robots 814 | . 73 147 . 23 1 116 91 33 72 . . . . 69 16 28 . 8 136 1 Core Hits 403 | . 28 56 . 10 1 49 48 9 32 . . . . 27 15 16 . 6 105 1 Critical Kills 9 | . . . . . . . 2 . 1 . . . . 1 . 2 . 1 2 . Critical Parts Destroyed 11 | . . 2 . 1 . . . . . . . . . . . 4 . 1 3 . Critical Strikes 27 | . . 2 . 1 . . 4 1 2 . . . . 2 . 6 . 2 7 . Meltdown 5 | . . . . . . . 1 . 1 . . . . 1 . . . . 2 . Destroy 15 | . . 2 . 1 . . 1 . . . . . . . . 6 . 2 3 . Blast 6 | . . . . . . . 2 1 1 . . . . . . . . . 2 . Sever 1 | . . . . . . . . . . . . . . 1 . . . . . . Melee Attacks 86 | . . . . . . 40 1 . 5 . . . . 19 . . . . 21 . Impact . | . . . . . . . . . . . . . . . . . . . . . Slashing 85 | . . . . . . 40 1 . 5 . . . . 19 . . . . 20 . Piercing . | . . . . . . . . . . . . . . . . . . . . . Sneak Attacks 5 | . . . . . . 2 . . . . . . . . . . . . 3 . Combat Hostiles 1 | . . . . . . . . . . . . . . . . . . . 1 . Follow-up Attacks . | . . . . . . . . . . . . . . . . . . . . . Damage Inflicted 24535 | . 942 2018 . 386 15 2749 2938 867 2454 . . . . 2105 867 940 . 139 8087 28 Guns 6098 | . 942 2018 . 386 15 1388 340 . . . . . . . . 108 . 30 871 . Cannons 9846 | . . . . . . 150 1937 867 2230 . . . . 1646 416 384 . 109 2107 . Explosions 6434 | . . . . . . . 661 . 224 . . . . . 451 448 . . 4622 28 Melee 2157 | . . . . . . 1211 . . . . . . . 459 . . . . 487 . Ramming . | . . . . . . . . . . . . . . . . . . . . . Kinetic 8176 | . 942 2018 . 386 15 1388 826 492 137 . . . . . . 108 . 30 1834 . Thermal 8230 | . . . . . . 150 1451 375 2317 . . . . 1646 416 384 . 109 1382 . Explosive 5972 | . . . . . . . 661 . . . . . . . 451 448 . . 4384 28 Electromagnetic . | . . . . . . . . . . . . . . . . . . . . . Impact . | . . . . . . . . . . . . . . . . . . . . . Slashing 2157 | . . . . . . 1211 . . . . . . . 459 . . . . 487 . Piercing . | . . . . . . . . . . . . . . . . . . . . . Highest Corruption 3 | . . 1 1 1 1 . 2 2 3 . . . . 1 1 . . . 1 1 Average Corruption 1 | . . 1 1 1 1 . 2 2 1 . . . . 1 1 . . . 1 1 Corruption Purged 5 | . . . . . . . . . 3 . . . . 1 1 . . . . . Corruption Blocked . | . . . . . . . . . . . . . . . . . . . . . Effects 61 | . . 4 3 10 2 . 22 7 4 . . . . 2 . . . . 5 2 Message Errors 14 | . . 1 1 1 1 . 6 . 1 . . . . 1 . . . . 1 1 Matter Fused 17 | . . 1 1 2 1 . 6 4 1 . . . . . . . . . 1 . Heat Flow Errors 6 | . . . . . . . 4 1 . . . . . . . . . . 1 . Energy Discharges 7 | . . . . 3 . . 1 . 1 . . . . . . . . . 1 1 Parts Rejected 2 | . . . . . . . . 1 . . . . . 1 . . . . . . Parts Fused 1 | . . . . . . . 1 . . . . . . . . . . . . . Data Loss (minor) 8 | . . 1 1 3 . . 1 1 . . . . . . . . . . 1 . Data Loss (major) 3 | . . 1 . 1 . . 1 . . . . . . . . . . . . . Misfires 2 | . . . . . . . 1 . 1 . . . . . . . . . . . Alerts 1 | . . . . . . . 1 . . . . . . . . . . . . . Overload Shots . | . . . . . . . . . . . . . . . . . . . . . Overflow Damage 689 | . . . . . . 118 33 14 78 . . . . 49 23 10 . . 364 . Projectiles 243 | . . . . . . . 33 14 49 . . . . 49 23 3 . . 72 . Explosions 256 | . . . . . . . . . 29 . . . . . . 7 . . 220 . Melee 190 | . . . . . . 118 . . . . . . . . . . . . 72 . Knockbacks 14 | . . . . . . . 7 3 . . . . . . . . . . 4 . Impact . | . . . . . . . . . . . . . . . . . . . . . Kinetic 14 | . . . . . . . 7 3 . . . . . . . . . . 4 . Secondary . | . . . . . . . . . . . . . . . . . . . . . Self-Inflicted Damage 252 | . . . . . . . . . 73 . . . . . . . . . 179 . Shots 6 | . . . . . . . . . 1 . . . . . . . . . 5 . Rammed . | . . . . . . . . . . . . . . . . . . . . . Targets Rammed . | . . . . . . . . . . . . . . . . . . . . . Kicked . | . . . . . . . . . . . . . . . . . . . . . Crushed . | . . . . . . . . . . . . . . . . . . . . . Highest Temperature 352 | . 20 20 . 8 4 225 333 348 265 . . . . 352 318 126 . 36 280 . Average Temperature 78 | . 7 6 . 4 3 73 91 142 62 . . . . 101 119 44 . 13 43 . Received Heat Transfer 3741 | . 195 345 . . . 558 474 171 321 . . . . 528 45 225 . 18 861 . Effects 7 | . . . . . . . 3 3 . . . . . . 1 . . . . . Shutdowns 1 | . . . . . . . . 1 . . . . . . . . . . . . Energy Bleed 3 | . . . . . . . 1 1 . . . . . . 1 . . . . . Interference 3 | . . . . . . . 2 1 . . . . . . . . . . . . Siege Activations . | . . . . . . . . . . . . . . . . . . . . . Robots Corrupted . | . . . . . . . . . . . . . . . . . . . . . Combat Hostiles . | . . . . . . . . . . . . . . . . . . . . . Parts Fried . | . . . . . . . . . . . . . . . . . . . . . Impact Corruptions . | . . . . . . . . . . . . . . . . . . . . . Robots Melted 5 | . . . . . . . 1 . 1 . . . . 1 . . . . 2 . Combat Hostiles 3 | . . . . . . . 1 . 1 . . . . . . . . . 1 . Parts Melted 35 | . . . . . . . 1 . 14 . . . . 8 1 . . . 11 . Heat Transferred 11084 | . . . . . . 222 2109 555 3243 . . . . 2109 555 518 . 148 1625 . Parts Sabotaged . | . . . . . . . . . . . . . . . . . . . . . Parts Stolen . | . . . . . . . . . . . . . . . . . . . . . Parts Stripped . | . . . . . . . . . . . . . . . . . . . . . Power Chain Reactions . | . . . . . . . . . . . . . . . . . . . . . Missiles Intercepted . | . . . . . . . . . . . . . . . . . . . . . Alert | -11 -10 -9 -9 -9 -8 -8 -8 -8 -7 -7 -7 -7 -6 -6 -6 -6 -6 -5 -5 -5 ------- Run | Jun Mat Mat Min Exi Min Mat Gar Mat Fac Low Low Dat Pro Fac Low Low Zio Pro Fac Upp Peak Influence 2037 | . 115 216 63 . 136 228 2037 743 317 . . . . 409 . . . . 829 . Initial 728 | . . . 13 . . 37 76 728 80 . . . . . . . . . 334 . Average 291 | . 45 41 35 . 69 107 915 550 133 . . . . 104 . . . . 420 . Maximum Alert Level 5 | . . 1 . . . 1 5 3 1 . . . . 2 . . . . 3 . Low Security (%) 64 | . 100 97 100 . 100 86 10 . 87 . . . . 74 . . . . 21 . Level 1 11 | . . 2 . . . 13 12 5 12 . . . . 25 . . . . 36 . Level 2 11 | . . . . . . . 20 89 . . . . . . . . . . 25 . Level 3 5 | . . . . . . . 19 4 . . . . . . . . . . 16 . Level 4 3 | . . . . . . . 20 . . . . . . . . . . . . . Level 5 3 | . . . . . . . 17 . . . . . . . . . . . . . High Security . | . . . . . . . . . . . . . . . . . . . . . Max Security . | . . . . . . . . . . . . . . . . . . . . . Squads Dispatched 24 | . 1 2 . . . 2 . 1 3 . . . . 4 . 1 . . 10 . Investigation 5 | . 1 2 . . . 1 . . . . . . . . . 1 . . . . Extermination 6 | . . . . . . . . . 1 . . . . 2 . . . . 3 . Reinforcement 10 | . . . . . . 1 . 1 1 . . . . 2 . . . . 5 . Assault 1 | . . . . . . . . . . . . . . . . . . . 1 . Garrison 2 | . . . . . . . . . 1 . . . . . . . . . 1 . Intercept . | . . . . . . . . . . . . . . . . . . . . . Searches Triggered . | . . . . . . . . . . . . . . . . . . . . . Data Miner Redirects 1 | . . . . . . . . . . . . . . . . . . . 1 . Construction Impeded 1 | . . . . . . . . . . . . . . . . . . . 1 . Haulers Reinforced . | . . . . . . . . . . . . . . . . . . . . . Active Scanning Responses . | . . . . . . . . . . . . . . . . . . . . . Cargo Convoy Interrupts 2 | . . . . . . . . . . . . . . 1 . . . . 1 . Stealth | -11 -10 -9 -9 -9 -8 -8 -8 -8 -7 -7 -7 -7 -6 -6 -6 -6 -6 -5 -5 -5 --------- Run | Jun Mat Mat Min Exi Min Mat Gar Mat Fac Low Low Dat Pro Fac Low Low Zio Pro Fac Upp Distress Signals 25 | . 3 4 . . . . 4 . 3 . . . . 2 . . . . 9 . Communications Jammed 2 | . . . . . . 2 . . . . . . . . . . . . . . Distress Signals 1 | . . . . . . 1 . . . . . . . . . . . . . . Times Spotted 292 | . 18 40 2 . 4 27 37 10 30 . 1 . . 26 8 11 . 9 66 3 Peak Tracking Total 9 | . 4 5 . . 2 4 6 2 4 . 1 . . 6 5 7 . 4 9 3 Tactical Retreats 13 | . 1 3 . . . . 1 . . . 1 . . 2 . . . 1 4 . Traps | -11 -10 -9 -9 -9 -8 -8 -8 -8 -7 -7 -7 -7 -6 -6 -6 -6 -6 -5 -5 -5 ------- Run | Jun Mat Mat Min Exi Min Mat Gar Mat Fac Low Low Dat Pro Fac Low Low Zio Pro Fac Upp Traps Triggered 11 | . 2 4 . . . . 4 . . . . . . 1 . . . . . . Indirectly . | . . . . . . . . . . . . . . . . . . . . . Trap Hack Attempts . | . . . . . . . . . . . . . . . . . . . . . Triggered . | . . . . . . . . . . . . . . . . . . . . . Disarmed . | . . . . . . . . . . . . . . . . . . . . . Reprogrammed . | . . . . . . . . . . . . . . . . . . . . . Reused . | . . . . . . . . . . . . . . . . . . . . . Traps Extracted . | . . . . . . . . . . . . . . . . . . . . . Installed . | . . . . . . . . . . . . . . . . . . . . . Triggered 3 | . . . . . . . . . . . . . . 1 . 1 . 1 . . Machines | -11 -10 -9 -9 -9 -8 -8 -8 -8 -7 -7 -7 -7 -6 -6 -6 -6 -6 -5 -5 -5 ---------- Run | Jun Mat Mat Min Exi Min Mat Gar Mat Fac Low Low Dat Pro Fac Low Low Zio Pro Fac Upp Machines Disabled 25 | . . . . . . . 8 1 5 . . . . 2 1 . . . 7 1 Max in Single Turn 4 | . . . . . . . 1 . 2 . . . . 1 1 . . . 4 1 Garrison Access 1 | . . . . . . . . . 1 . . . . . . . . . . . Garrison Relay 5 | . . . . . . . 5 . . . . . . . . . . . . . Phase Generator 1 | . . . . . . . 1 . . . . . . . . . . . . . Machines Repaired . | . . . . . . . . . . . . . . . . . . . . . Machines Sabotaged . | . . . . . . . . . . . . . . . . . . . . . Overloaded Fab Kills . | . . . . . . . . . . . . . . . . . . . . . Hacking | -11 -10 -9 -9 -9 -8 -8 -8 -8 -7 -7 -7 -7 -6 -6 -6 -6 -6 -5 -5 -5 --------- Run | Jun Mat Mat Min Exi Min Mat Gar Mat Fac Low Low Dat Pro Fac Low Low Zio Pro Fac Upp Machines Accessed 60 | . 5 13 . 3 1 6 3 5 7 . . 4 . 8 1 1 . . 3 . Terminals 35 | . 4 10 . . 1 3 3 3 5 . . . . 4 . 1 . . 1 . Fabricators 1 | . . . . . . . . . . . . . . 1 . . . . . . Repair Stations 2 | . . . . . . . . 1 . . . . . 1 . . . . . . Recycling Units 6 | . 1 1 . . . 1 . . 1 . . . . 2 . . . . . . Scanalyzers 5 | . . 2 . . . 1 . 1 . . . . . . . . . . 1 . Garrison Access 3 | . . . . . . 1 . . 1 . . . . . . . . . 1 . Total Hacks 254 | . 22 47 . 18 3 28 4 43 22 . . 30 . 22 1 10 . . 4 . Successful 201 | . 15 35 . 18 1 26 3 32 12 . . 30 . 16 1 10 . . 2 . Failed 53 | . 7 12 . . 2 2 1 11 10 . . . . 6 . . . . 2 . Catastrophic 4 | . . . . . . . 1 1 1 . . . . 1 . . . . . . Database Lockouts . | . . . . . . . . . . . . . . . . . . . . . Manual 98 | . 17 27 . 1 2 12 1 23 8 . . . . 6 . . . . . 1 Terminals 145 | . 17 38 . . 3 16 4 32 12 . . . . 12 . 10 . . 1 . Fabricators 2 | . . . . . . . . . . . . . . 2 . . . . . . Repair Stations 10 | . . . . . . . . 7 . . . . . 3 . . . . . . Recycling Units 26 | . 5 3 . . . 6 . . 7 . . . . 5 . . . . . . Scanalyzers 16 | . . 6 . . . 4 . 4 . . . . . . . . . . 2 . Garrison Access 6 | . . . . . . 2 . . 3 . . . . . . . . . 1 . Terminal Hacks 130 | . 8 21 . 18 1 12 3 16 6 . . 30 . 3 1 10 . . 1 . Record 38 | . . . . 17 . . . . . . . 11 . . . 10 . . . . Part Schematic 16 | . . 4 . . . . . . 1 . . 11 . . . . . . . . Robot Schematic 5 | . . . . . . . . . . . . 5 . . . . . . . . Robot Analysis 12 | . 5 4 . . . 2 . . . . . . . 1 . . . . . . Prototype ID Bank 9 | . . 2 . . . 1 . 1 1 . . 3 . 1 . . . . . . Open Door 2 | . . . . . . . 1 . . . . . . . 1 . . . . . Open DSF 3 | . . . . . . . . . 1 . . . . 1 . . . . 1 . Level Access Points 2 | . . . . . . . . 2 . . . . . . . . . . . . Branch Access Points 4 | . . . . . . 1 . 2 1 . . . . . . . . . . . Emergency Access Points 2 | . . . . . . . 1 1 . . . . . . . . . . . . Terminal Index 5 | . 1 1 . . . 1 . 1 1 . . . . . . . . . . . Repair Station Index 1 | . . . . . . . . 1 . . . . . . . . . . . . Scanalyzer Index 1 | . . 1 . . . . . . . . . . . . . . . . . . Alert Level 3 | . . 1 . . . 1 . 1 . . . . . . . . . . . . Unreport Threat 1 | . . . . . . . . 1 . . . . . . . . . . . . Locate Traps 5 | . 1 2 . . . 2 . . . . . . . . . . . . . . Dispatch Records 1 | . . 1 . . . . . . . . . . . . . . . . . . Maintenance Status 1 | . . 1 . . . . . . . . . . . . . . . . . . Surveillance Status 1 | . . . . . . 1 . . . . . . . . . . . . . . Patrol Status 1 | . . . . . . . . 1 . . . . . . . . . . . . Transport Status 1 | . . . . . . 1 . . . . . . . . . . . . . . Hauler Manifests 2 | . . 1 . . . 1 . . . . . . . . . . . . . . Registered Prototypes 2 | . . . . . . . . 1 1 . . . . . . . . . . . Zone Layout 10 | . 1 3 . . 1 1 . 4 . . . . . . . . . . . . Garrison Registry 1 | . . . . . . . 1 . . . . . . . . . . . . . EX-Prototype ID Bank 1 | . . . . 1 . . . . . . . . . . . . . . . . Fabricator Hacks 2 | . . . . . . . . . . . . . . 2 . . . . . . Network Status 1 | . . . . . . . . . . . . . . 1 . . . . . . Build 1 | . . . . . . . . . . . . . . 1 . . . . . . Repair Station Hacks 9 | . . . . . . . . 6 . . . . . 3 . . . . . . Scan Component 5 | . . . . . . . . 3 . . . . . 2 . . . . . . Repair 4 | . . . . . . . . 3 . . . . . 1 . . . . . . Recycling Unit Hacks 9 | . 2 . . . . 2 . . 2 . . . . 3 . . . . . . Process 1 | . . . . . . . . . . . . . . 1 . . . . . . Report Inventory 3 | . 1 . . . . 1 . . 1 . . . . . . . . . . . Retrieve Components 5 | . 1 . . . . 1 . . 1 . . . . 2 . . . . . . Scanalyzer 14 | . . 6 . . . 4 . 4 . . . . . . . . . . . . Insert Component 5 | . . 3 . . . 1 . 1 . . . . . . . . . . . . Analyze 9 | . . 3 . . . 3 . 3 . . . . . . . . . . . . Garrison Access Hacks 5 | . . . . . . 2 . . 2 . . . . . . . . . 1 . Unlock Access 2 | . . . . . . 1 . . . . . . . . . . . . 1 . Seal Access 1 | . . . . . . . . . 1 . . . . . . . . . . . Coupler Status 2 | . . . . . . 1 . . 1 . . . . . . . . . . . Unauthorized Hacks 32 | . 5 8 . . . 6 . 6 2 . . . . 5 . . . . . . Terminals 22 | . 3 6 . . . 4 . 6 . . . . . 3 . . . . . . Track 4 | . . 1 . . . 1 . 2 . . . . . . . . . . . . Botnet 14 | . 3 3 . . . 2 . 3 . . . . . 3 . . . . . . Operators 3 | . . 1 . . . 1 . 1 . . . . . . . . . . . . Search 1 | . . 1 . . . . . . . . . . . . . . . . . . Fabricators . | . . . . . . . . . . . . . . . . . . . . . Repair Stations . | . . . . . . . . . . . . . . . . . . . . . Recycling Units 10 | . 2 2 . . . 2 . . 2 . . . . 2 . . . . . . Reject 5 | . 1 1 . . . 1 . . 1 . . . . 1 . . . . . . Mask 5 | . 1 1 . . . 1 . . 1 . . . . 1 . . . . . . Scanalyzers . | . . . . . . . . . . . . . . . . . . . . . Garrison Access . | . . . . . . . . . . . . . . . . . . . . . Data Cores Recovered 2 | . . 1 . . . . . . . . . . . . . . . . 1 . Used . | . . . . . . . . . . . . . . . . . . . . . Hacking Detections 42 | . 5 11 . . 1 5 1 5 6 . . . . 6 . 1 . . 1 . Full Trace Events 4 | . 1 1 . . . 1 . . . . . . . . . 1 . . . . Feedback Events . | . . . . . . . . . . . . . . . . . . . . . Feedback Blocked . | . . . . . . . . . . . . . . . . . . . . . Robot Schematics Acquired 5 | . . . . . . . . . . . . 5 . . . . . . . . Robots Built 1 | . . . . . . . . . . . . . . 1 . . . . . . Authchips . | . . . . . . . . . . . . . . . . . . . . . Time 40 | . . . . . . . . . . . . . . 40 . . . . . . Total Robot Build Rating 1 | . . . . . . . . . . . . . . 1 . . . . . . Part Schematics Acquired 20 | . . 7 . . . . . 1 1 . . 11 . . . . . . . . Parts Built . | . . . . . . . . . . . . . . . . . . . . . Authchips . | . . . . . . . . . . . . . . . . . . . . . Time . | . . . . . . . . . . . . . . . . . . . . . Total Part Build Rating . | . . . . . . . . . . . . . . . . . . . . . Parts Repaired 4 | . . . . . . . . 3 . . . . . 1 . . . . . . Time 164 | . . . . . . . . 142 . . . . . 22 . . . . . . Parts Recycled . | . . . . . . . . . . . . . . . . . . . . . Recycled Matter 16 | . . . . . . . . . . . . . . 16 . . . . . . Retrieved Matter . | . . . . . . . . . . . . . . . . . . . . . Retrieved Components 21 | . 2 . . . . 9 . . 4 . . . . 6 . . . . . . Parts Scanalyzed 5 | . . 3 . . . 1 . 1 . . . . . . . . . . . . Part Schematics Acquired 4 | . . 3 . . . . . 1 . . . . . . . . . . . . Parts Damaged 2 | . . 1 . . . . . 1 . . . . . . . . . . . . Bothacking | -11 -10 -9 -9 -9 -8 -8 -8 -8 -7 -7 -7 -7 -6 -6 -6 -6 -6 -5 -5 -5 ------------ Run | Jun Mat Mat Min Exi Min Mat Gar Mat Fac Low Low Dat Pro Fac Low Low Zio Pro Fac Upp Used RIF Installer . | . . . . . . . . . . . . . . . . . . . . . Robots Hacked 1 | . . . . . . . . . . . . . . . . . . . 1 . Non-combat . | . . . . . . . . . . . . . . . . . . . . . Combat . | . . . . . . . . . . . . . . . . . . . . . Robot Hacks Applied . | . . . . . . . . . . . . . . . . . . . . . Manual 1 | . . . . . . . . . . . . . . . . . . . 1 . Relay Couplers Released 18 | . . . . . . . 18 . . . . . . . . . . . . . Machine Destruction 18 | . . . . . . . 18 . . . . . . . . . . . . . Fabnet Peak Effective % . | . . . . . . . . . . . . . . . . . . . . . Robots Rewired 6 | . . . . 2 . . 3 . . . . . . . 1 . . . . . Allies Hacked . | . . . . . . . . . . . . . . . . . . . . . Hacks Repelled . | . . . . . . . . . . . . . . . . . . . . . Allies | -11 -10 -9 -9 -9 -8 -8 -8 -8 -7 -7 -7 -7 -6 -6 -6 -6 -6 -5 -5 -5 -------- Run | Jun Mat Mat Min Exi Min Mat Gar Mat Fac Low Low Dat Pro Fac Low Low Zio Pro Fac Upp Total Allies 14 | . . . 1 2 . . 3 . . . . . 1 1 1 . 4 . 1 . Largest Group 5 | . . . 1 2 2 1 3 2 . . . . 1 1 2 2 5 5 3 . Highest-Rated Group 166 | . . . 31 31 29 21 95 64 . . . . 96 12 42 42 166 166 97 . Highest-Rated Ally 96 | . . . 31 31 21 21 39 39 . . . . 96 12 30 30 39 39 85 . Total Orders 7 | . . . . . . . . . . . . . . 1 2 2 . . . 2 DROP 1 | . . . . . . . . . . . . . . . . 1 . . . . PICKUP 4 | . . . . . . . . . . . . . . 1 2 1 . . . . EXPLORE 2 | . . . . . . . . . . . . . . . . . . . . 2 Ally Attacks 126 | . . . 3 14 12 8 7 10 . . . . 7 . . 7 . 36 22 . Total Damage 2656 | . . . 65 233 174 170 93 162 . . . . 79 . . 127 . 658 895 . Kills 29 | . . . 2 3 6 1 2 3 . . . . . . . 1 . 7 4 . Allies Corrupted . | . . . . . . . . . . . . . . . . . . . . . Allies Melted 2 | . . . . . . . . . . . . . 1 . . 1 . . . . Intel | -11 -10 -9 -9 -9 -8 -8 -8 -8 -7 -7 -7 -7 -6 -6 -6 -6 -6 -5 -5 -5 ------- Run | Jun Mat Mat Min Exi Min Mat Gar Mat Fac Low Low Dat Pro Fac Low Low Zio Pro Fac Upp Robot Analysis Total 12 | . 5 4 . . . 2 . . . . . . . 1 . . . . . . Derelict Logs Recovered 9 | . . . . . . . . . . 1 3 . 1 . 2 . 1 . . 1 Drone Launches 2 | . . . . . . . . . . . . . . . . . . . . 2 Drone Recoveries . | . . . . . . . . . . . . . . . . . . . . . Exploration | -11 -10 -9 -9 -9 -8 -8 -8 -8 -7 -7 -7 -7 -6 -6 -6 -6 -6 -5 -5 -5 ------------- Run | Jun Mat Mat Min Exi Min Mat Gar Mat Fac Low Low Dat Pro Fac Low Low Zio Pro Fac Upp Turns Passed 24055 | . 1637 3386 127 1132 293 1587 2715 808 1249 1041 1192 232 975 1472 1204 856 1622 671 1576 280 Spaces Moved 10115 | 1 646 1317 66 565 152 627 1173 261 445 396 453 89 371 569 606 356 824 330 607 261 Core 290 | . . 1 . . . . . . . . . . . . . 2 . . 26 261 Treads 1373 | . 454 919 . . . . . . . . . . . . . . . . . . Legs 8239 | 1 192 397 66 565 152 627 1173 261 443 396 451 89 371 569 606 352 824 330 374 . Wheels 213 | . . . . . . . . . 2 . 2 . . . . 2 . . 207 . Hover . | . . . . . . . . . . . . . . . . . . . . . Flight . | . . . . . . . . . . . . . . . . . . . . . Fastest Speed 50 | 120 120 190 190 190 190 187 187 192 192 262 245 263 263 190 190 160 190 195 50 50 Average Speed 209 | 120 224 226 190 190 190 189 198 219 221 262 262 263 263 201 190 219 194 195 189 98 Slowest Speed 2050 | 120 320 1550 190 190 190 260 338 266 335 262 263 263 263 265 190 2050 195 195 1650 300 Overloaded Moves . | . . . . . . . . . . . . . . . . . . . . . Propulsion Burnouts . | . . . . . . . . . . . . . . . . . . . . . Robots Hopped . | . . . . . . . . . . . . . . . . . . . . . Cave-ins Triggered 2 | . . . . . . . . . 2 . . . . . . . . . . . Exploration Rate (%) 49 | 2 77 79 16 92 35 48 87 22 13 56 61 69 56 17 72 47 90 49 14 47 Regions Visited 20 Branch Regions 12 Pre-discovered Areas 7 | . . . . 1 . . . . . 1 . 1 . . . 2 2 . . . Known Exits Taken 19 | 1 1 1 1 1 1 1 . 1 1 1 1 1 1 1 1 1 1 1 1 . Unknown Exits Taken . | . . . . . . . . . . . . . . . . . . . . . Scrap Searched 17 | . . . . . . . . . . 2 1 . 1 . 4 4 3 1 . 1 Spaces Dug 59 | . . . . . . 5 . . 22 . . . . 10 . . . . 6 16 Terrain Destroyed 445 | . . . . . . 5 98 2 57 . . . . 19 19 40 . 1 188 16 Melee 20 | . . . . . . 5 . . 5 . . . . 6 . . . . 4 . Projectile 64 | . . . . . . . 1 2 26 . . . . 13 . 4 . . 18 . AOE 360 | . . . . . . . 97 . 26 . . . . . 19 36 . . 166 16 Terrain Rammed . | . . . . . . . . . . . . . . . . . . . . . Walls Destroyed . | . . . . . . . . . . . . . . . . . . . . . Machines Disabled . | . . . . . . . . . . . . . . . . . . . . . Actions | -11 -10 -9 -9 -9 -8 -8 -8 -8 -7 -7 -7 -7 -6 -6 -6 -6 -6 -5 -5 -5 --------- Run | Jun Mat Mat Min Exi Min Mat Gar Mat Fac Low Low Dat Pro Fac Low Low Zio Pro Fac Upp Total 11940 | . 750 1576 69 604 153 879 1406 459 585 402 457 88 371 783 638 391 846 346 855 282 Wait 626 | . 23 107 2 2 . 114 39 161 33 . . . . 105 . 4 5 . 20 11 Move 10093 | . 645 1316 65 564 151 626 1170 260 444 395 452 88 370 568 605 355 823 329 606 261 Hop . | . . . . . . . . . . . . . . . . . . . . . Pick Up 160 | . 24 26 1 8 . 10 18 2 11 2 1 . 1 10 8 2 3 3 28 2 Fast Attach 38 | . . 4 . . . 4 4 5 4 1 . . . 6 . 1 3 . 5 1 Attach 67 | . 5 5 . . . 4 5 . 8 . 2 . . 3 3 3 1 . 26 2 Detach 4 | . . . . . . . 1 . . . . . . 1 . 1 . . 1 . Swap 89 | . 5 6 . . . 11 17 3 4 1 1 . . 11 3 3 3 2 19 . Drop 170 | . 5 28 1 8 . 19 22 7 6 3 1 . . 16 6 1 8 5 31 3 Fire 569 | . 43 84 . 15 2 51 99 21 70 . . . . 44 12 21 . 7 98 2 Melee 86 | . . . . . . 40 1 . 5 . . . . 19 . . . . 21 . Ram . | . . . . . . . . . . . . . . . . . . . . . Kick . | . . . . . . . . . . . . . . . . . . . . . Crush . | . . . . . . . . . . . . . . . . . . . . . Escape Stasis 15 | . . . . . . . 15 . . . . . . . . . . . . . Rewire 23 | . . . . 7 . . 15 . . . . . . . 1 . . . . . Trap . | . . . . . . . . . . . . . . . . . . . . . Miscellaneous . | . . . . . . . . . . . . . . . . . . . . . Route ------- -11/Junkyard -10/Materials (discovered 4 exits: *Mat x3 / *Min) -9/Materials (discovered 5 exits: *Mat x3 / *Min / *Sto) -9/Mines (discovered 3 exits: *Mat x2 / *Exi) -9/Exiles -8/Mines -8/Materials (discovered 3 exits: *Fac x2 / Gar) -8/Garrison (discovered 3 exits: *Mat x3) -8/Materials (discovered 3 exits: *Fac x3) -7/Factory (discovered 2 exits: *Low x2) -7/Lower Caves -7/Lower Caves -7/Data Miner -6/Proximity Caves -6/Factory -6/Lower Caves -6/Lower Caves -6/Zion (discovered 2 exits: Dee / *Pro) -5/Proximity Caves -5/Factory (discovered 2 exits: *Upp / Gar) -5/Upper Caves History --------- Turn | Location | Event 1 | -11/Junkyard | Identified exit to Materials 1 | -11/Junkyard | Discovered exit to Materials (range 0) 1 | -11/Junkyard | Entered Materials 1 | -10/Materials | Evolved 1 slot: Utility x1 100 | -10/Materials | Identified exit to Mines 100 | -10/Materials | Discovered exit to Mines (range 10) 323 | -10/Materials | Build established: Hacker-Mutant 554 | -10/Materials | Identified exit to Materials 554 | -10/Materials | Discovered exit to Materials (range 12) 900 | -10/Materials | Discovered exit to Materials (range 14) 1388 | -10/Materials | Discovered exit to Materials (range 8) 1638 | -10/Materials | Entered another Materials area 1638 | -9/Materials | Evolved 2 slots: Propulsion x2 1738 | -9/Materials | Identified exit to Storage 1738 | -9/Materials | Discovered exit to Storage (range 12) 2678 | -9/Materials | Identified exit to Mines 2678 | -9/Materials | Discovered exit to Mines (range 13) 3065 | -9/Materials | Identified exit to Materials 3065 | -9/Materials | Discovered exit to Materials (range 13) 3411 | -9/Materials | Discovered exit to Materials (range 10) 4789 | -9/Materials | Discovered exit to Materials (range 10) 5024 | -9/Materials | Entered Mines 5027 | -9/Mines | Received a Mining Laser from a helpful Derelict 5066 | -9/Mines | Received a Rocket Launcher from a helpful Derelict 5102 | -9/Mines | Discovered exit to Materials (range 8) 5104 | -9/Mines | Discovered exit to Materials (range 7) 5138 | -9/Mines | Deemed a non-threat by the Exiles lab entrance 5140 | -9/Mines | Identified exit to Exiles 5140 | -9/Mines | Discovered exit to Exiles (range 5) 5151 | -9/Mines | Entered Exiles 5151 | -9/Exiles | Found Exiles lab destroyed 5151 | -9/Exiles | Accompanied by 1 ally 5764 | -9/Exiles | Learned location of Zion (-6) 6030 | -9/Exiles | Opened EX-Vault 6049 | -9/Exiles | Found 0b10 Alert Chip 6262 | -9/Exiles | Identified exit to Mines 6262 | -9/Exiles | Discovered exit to Mines (range 14) 6283 | -9/Exiles | Entered Mines 6283 | -8/Mines | Accompanied by 2 allies 6404 | -8/Mines | Discovered exit to Materials (range 14) 6576 | -8/Mines | Entered Materials 6576 | -8/Materials | Accompanied by 1 ally 6576 | -8/Materials | Evolved 2 slots: Utility x2 7168 | -8/Materials | Identified exit to Factory 7168 | -8/Materials | Discovered exit to Factory (range 16) 7726 | -8/Materials | Discovered exit to Factory (range 8) 8157 | -8/Materials | Identified exit to Garrison 8163 | -8/Materials | Entered Garrison 8244 | -8/Garrison | Triggered checkpoint 8305 | -8/Garrison | Garrison Relay disabled 8432 | -8/Garrison | Triggered checkpoint 8784 | -8/Garrison | Garrison Relay disabled 8826 | -8/Garrison | Triggered checkpoint 8892 | -8/Garrison | Identified exit to Materials 8892 | -8/Garrison | Discovered exit to Materials (range 11) 9022 | -8/Garrison | Triggered checkpoint 9134 | -8/Garrison | Spotted B-75 Beast 9168 | -8/Garrison | Discovered exit to Materials (range 15) 9212 | -8/Garrison | Discovered exit to Materials (range 62) 9212 | -8/Garrison | Discovered exit to Materials (range 48) 9212 | -8/Garrison | Discovered exit to Materials (range 7) 9249 | -8/Garrison | Garrison Relay disabled 9333 | -8/Garrison | Garrison Relay disabled 9760 | -8/Garrison | Triggered checkpoint 9803 | -8/Garrison | Garrison Relay disabled 9828 | -8/Garrison | Phase Generator disabled 10641 | -8/Garrison | Attempted to access garrison exit controls, blocked by remote lockdown 10878 | -8/Garrison | Entered Materials 10878 | -8/Materials | Accompanied by 2 allies 11233 | -8/Materials | Repaired Broken Adv. Shield Generator 11260 | -8/Materials | Repaired Aluminum Leg 11300 | -8/Materials | Repaired Titanium Leg 11686 | -8/Materials | Entered Factory 11686 | -7/Factory | Evolved 2 slots: Power x1, Utility x1 11784 | -7/Factory | Garrison activated, responded to threat 11944 | -7/Factory | Identified exit to Lower Caves 11984 | -7/Factory | Crushed by falling debris 11992 | -7/Factory | Crushed by falling debris 12023 | -7/Factory | Lost 3 parts (2u1w) 12935 | -7/Factory | Entered Lower Caves 12942 | -7/Lower Caves | Met a Warlord Commander 12943 | -7/Lower Caves | Learned location of Warlord (-5) 12951 | -7/Lower Caves | Found Encrypted Comm Array 12984 | -7/Lower Caves | Spotted B-75 Beast 13330 | -7/Lower Caves | Encountered a Warlord checkpoint 13886 | -7/Lower Caves | Identified exit to Lower Caves 13886 | -7/Lower Caves | Discovered exit to Lower Caves (range 12) 13891 | -7/Lower Caves | Learned Factory emergency access door positions 13976 | -7/Lower Caves | Entered another Lower Caves area 14170 | -7/Lower Caves | Learned location of 1 exit from Factory 14232 | -7/Lower Caves | Encountered a Warlord checkpoint 14241 | -7/Lower Caves | Learned Factory interactive machine intel 14296 | -7/Lower Caves | Learned Factory stockpile data 14377 | -7/Lower Caves | Spotted B-75 Beast 15158 | -7/Lower Caves | Identified exit to Data Miner 15158 | -7/Lower Caves | Discovered exit to Data Miner (range 2) 15168 | -7/Lower Caves | Entered Data Miner 15168 | -7/Data Miner | Identified exit to Proximity Caves 15168 | -7/Data Miner | Discovered exit to Proximity Caves (range 6) 15218 | -7/Data Miner | Met Data Miner 15279 | -7/Data Miner | Learned location of Section 7 (-2) 15279 | -7/Data Miner | Acquired the access code to Warlord's prototype stash 15329 | -7/Data Miner | Received God Mode back door access code from Data Miner 15400 | -7/Data Miner | Entered Proximity Caves 15445 | -6/Proximity Caves | Escorted by Enhanced Grunt 15767 | -6/Proximity Caves | Identified exit to Factory 15767 | -6/Proximity Caves | Discovered exit to Factory (range 13) 16375 | -6/Proximity Caves | Entered Factory 16375 | -6/Factory | Evolved 2 slots: Utility x2 16376 | -6/Factory | Identified exit to Lower Caves 16379 | -6/Factory | Loaded intel: 51 interactive machine locations 16703 | -6/Factory | Identified exit to DSF 16756 | -6/Factory | Repaired Hyb. Deuterium Engine 17408 | -6/Factory | Spotted B-75 Beast 17570 | -6/Factory | Fabricated A-02 Transporter (x1) 17662 | -6/Factory | Cargo convoy interrupted 17847 | -6/Factory | Entered Lower Caves 17847 | -6/Lower Caves | Accompanied by 1 ally 18014 | -6/Lower Caves | Learned Factory interactive machine intel 18086 | -6/Lower Caves | Learned location of 1 exit from Proximity Caves 18455 | -6/Lower Caves | Attracted the attention of an 0b10 outpost 18514 | -6/Lower Caves | Destroyed 7 combat bots 18909 | -6/Lower Caves | Identified exit to Lower Caves 18909 | -6/Lower Caves | Discovered exit to Lower Caves (range 16) 19051 | -6/Lower Caves | Entered another Lower Caves area 19051 | -6/Lower Caves | Accompanied by 2 allies 19155 | -6/Lower Caves | Ambushed by wild Derelicts 19401 | -6/Lower Caves | Attracted the attention of an 0b10 base 19557 | -6/Lower Caves | Learned Factory terminal intel 19557 | -6/Lower Caves | Learned Extension security intel 19557 | -6/Lower Caves | Learned Research security intel 19557 | -6/Lower Caves | Learned Armory stockpile data 19557 | -6/Lower Caves | Learned Extension trap positions 19557 | -6/Lower Caves | Learned location of 1 exit from Proximity Caves 19557 | -6/Lower Caves | Learned location of Armory (-3) 19557 | -6/Lower Caves | Learned location of Extension (-5) 19889 | -6/Lower Caves | Identified exit to Zion 19889 | -6/Lower Caves | Discovered exit to Zion (range 5) 19907 | -6/Lower Caves | Entered Zion 19907 | -6/Zion | Accompanied by 1 ally 19932 | -6/Zion | Given A8's code to call for help 20021 | -6/Zion | Identified exit to Proximity Caves 20021 | -6/Zion | Discovered exit to Proximity Caves (range 9) 20591 | -6/Zion | Imprinted 20593 | -6/Zion | Declared Zion's savior 20798 | -6/Zion | Identified exit to Deep Caves 21529 | -6/Zion | Entered Proximity Caves 21529 | -5/Proximity Caves | Accompanied by 5 allies 21530 | -5/Proximity Caves | Identified exit to Factory 21624 | -5/Proximity Caves | Spotter reported a threat 21671 | -5/Proximity Caves | Spotter reported a threat 21831 | -5/Proximity Caves | Attracted the attention of an 0b10 checkpoint 22052 | -5/Proximity Caves | Received a Behemoth hack from an annoying Tinkerer 22200 | -5/Proximity Caves | Entered Factory 22200 | -5/Factory | Accompanied by 3 allies 22200 | -5/Factory | Evolved 2 slots: Propulsion x2 22201 | -5/Factory | Identified exit to Upper Caves 22202 | -5/Factory | Loaded intel: 53 interactive machine locations 22203 | -5/Factory | Loaded intel: 28 terminal locations 22248 | -5/Factory | Identified exit to DSF 22787 | -5/Factory | Identified exit to Garrison 22998 | -5/Factory | Destroyed 9 combat bots 23213 | -5/Factory | Cargo convoy interrupted 23266 | -5/Factory | Lost 3 parts (1p2n) 23277 | -5/Factory | Destroyed 9 combat bots 23357 | -5/Factory | Found Prototype Device 23358 | -5/Factory | Identified Exp. Shield Generator 23370 | -5/Factory | Found Prototype Device 23371 | -5/Factory | Identified Exp. Thermal Defense Suite 23400 | -5/Factory | First assault squad dispatched 23414 | -5/Factory | Spotted B-75 Beast 23418 | -5/Factory | Incoming assault squad redirected 23432 | -5/Factory | Befriended a Behemoth using the annoying Tinkerer's hack 23644 | -5/Factory | Lost 5 parts (2p3n) 23669 | -5/Factory | Garrison activated, responded to threat 23718 | -5/Factory | Lost 4 parts (1n1u2w) 23730 | -5/Factory | Core integrity fell below 50% 23748 | -5/Factory | Released all parts (3) 23756 | -5/Factory | Found Exp. Thermal Defense Suite 23762 | -5/Factory | Core integrity fell below 20% 23776 | -5/Factory | Lost 4 parts (3u1w) 23776 | -5/Factory | Entered Upper Caves 23891 | -5/Upper Caves | Acquired the password to a Derelict Tinkerer's latest research 23919 | -5/Upper Caves | Found Prototype Special Weapon 23921 | -5/Upper Caves | Identified Molecular Deconstructor 24034 | -5/Upper Caves | Caught by Unaware searching for contraband prototypes 24037 | -5/Upper Caves | Learned location of 1 exit from Proximity Caves 24056 | -5/Upper Caves | Destroyed by H-66 Slayer with Gauss Rifle Last Messages --------------- 24001_ Found Adv. Drone Bay. 24001_ Found 28 Matter. 24002_ Acquired 28 matter. 24003_ Acquired Adv. Drone Bay. 24005_ Advanced Drone released from Adv. Drone Bay. 24018_ System corrupted: Energy discharge (-21). 24034_ P-70 Sage: "CONFIRMED SUSPICIOUS DERELICT. COMMENCE PROTOTYPE CONTRABAND SEARCH." 24037_ Acquired derelict log, extracted data. Data stored: Proximity Caves exits (x1). 24040_ Slug penetrates P-70 Sage. 24040_ Slug penetrates Wall. 24040_ Entropy package works its way towards P-70 Sage core. 24042_ P-70 Sage core destabilizing. 24043_ Slug penetrates P-70 Sage. 24044_ P-70 Sage core destabilizing. 24046_ P-70 Sage core entropy levels peaking. 24046_ P-70 Sage destroyed. [Achievement: Deconstruction] 24050_ Slug penetrates Wall. Map ----- +----------------------------------------------------+ | ##?????????????## #?# ## ##??? | | #?????????????# #?# ##???? | | #?####?????????#!! #?# ##????? | | ## #### ##????????# ### ##?????? | | #### ##?# ##???????## ### ####??????? | | #??# #?## ##???????###?# ###????????? | | ### #?# ##??????????## # #######??? | | #### #?# ###??????### # ##?? | | #?# ### #??????# # ##? | | #?# ##????## # #? | | #?# #### ##???#X #####? | | ##?# ##?## ##??#"" ####????? | | ##?# ##??# ##?##""" #???????? | | ##??# ##???# #??#### #???????? | | ###??# ##????### #?????# # #???????? | | ?????######???????###### #?????#### ##???????? | | #####??????????????????## ##????????# #????????? | | ##?###??????????????# #?????????# #????????? | | ## ###???????###### #?????????# #????????? | | ???????## ## #?????????# #????????? | | ??????? ## #?????????# #????????? | | ???????? ?# #?????????# #????????? | | #???????????? #?# #?????????# #????????? | | #????????????# #?# #???????### #????????? | | ## #????????????# #?# #???????# #????????? | | #???????????## #?#@ #????#### #????????? | | "# ##???????#### #?# #????# ###????????? | | # ###????## ###x #????# ####??????????? | | "# ###### *h[ #???## ####??????????? | | "# !c #???# ##?????????? | | / #######???# ##????????? | | ####### #?????????## ##???????? | | T" #?????## #??####?####### #???????? | | ""# ##????## #?## ### ##### #???????? | | ### ###??# ### ### ##???????? | | #??# ##???????? | | #?## ## #???????? | | #### #####?# ### #### #???????? | | ???# #????# ####?###??## #???????? | | ???## #??# ####??????????### ##???????? | | ?????# ##??###????????????????## ##????????? | | ?????? #???????????????????????# ##?????????? | | ?????? #???????????????????????# ##??????????? | | ??????## #??????????????????????? #???????????? | | ???????? #??????????????????????? ???????????? | | ???????? ?????????????????????? ##??????????? | | ???????? ????????????????????? ###???????????? | | ????????? ###???????????????????? #??????????????? | | ?????????##?????????????????????##???????????????? | | ?????????????????????????????????????????????????? | +----------------------------------------------------+ Best States ------------- Heat Dissipation 149 Energy Generation 34 Energy Capacity 990 Matter Stores 300 Matter Capacity 300 Sight Range 16 Robot Scan Range 15 Terrain Scan Density 10 Jamming Range 12 EM Shielding 4 Armor Coverage 600 Resistance: KI 55 Resistance: TH 65 Resistance: EX 35 Resistance: EM 60 Resistance: I 35 Resistance: S 35 Resistance: P 35 Core Shielding 20 Utility Shielding 66 Phase Shifting 5 Evasion (%) 55 Targeting Accuracy 8 Recoil Reduction 6 Particle Charging 15 Kinecelleration 30 Salvage Targeting 3 Offensive Hacking 30 Defensive Hacking 11 Authchip Count 2 Item Schematics ----------------- Huge Storage Unit | -9/Materials | Hacked Rocket Launcher | -9/Materials | Hacked Hpw. Tractor Beam | -9/Materials | Scanalyzed Imp. Targeting Computer | -9/Materials | Scanalyzed Shield Generator | -9/Materials | Scanalyzed Cargo Storage Unit | -9/Materials | Hacked Cooling System | -9/Materials | Hacked Adv. Shield Generator | -8/Materials | Scanalyzed Imp. VSS Leg | -7/Factory | Hacked Combat Drone Bay | -7/Data Miner | Free Lgt. Regenerative Plating | -7/Data Miner | Free Biomechanical Wings | -7/Data Miner | Free Exp. Targeting Computer | -7/Data Miner | Free Com. Ion Cannon | -7/Data Miner | Free Gyrokinetic Inverter | -7/Data Miner | Free Hvy. Phase Cannon | -7/Data Miner | Free Imp. Kinecellerator | -7/Data Miner | Free Proton Cannon | -7/Data Miner | Free Imp. Component Analysis Suite | -7/Data Miner | Free Imp. Fusion Compressor | -7/Data Miner | Free Robot Schematics ------------------ R-10 Processor | -7/Data Miner | Free G-47 Trooper | -7/Data Miner | Free G-50 Soldier | -7/Data Miner | Free L-41 Fighter | -7/Data Miner | Free S-27 Virus | -7/Data Miner | Free Fabricated ------------ A-02 Transporter | x1 | -6/Factory | Preloaded Alien Tech Used ----------------- None Achievements -------------- Deconstruction Maximum Efficiency No Signal Challenges ------------ None Game ------ Seed ThiefHeavyJammer Manual? 0 Play Time 03:21:38 Cumulative 135.4 hours Start 2023.03.15 @ 02:24:25 End 2023.03.15 @ 06:01:37 Sessions 1 Manual Loads 0 Difficulty Explorer Special Mode None Game No. 95 Rogue 93 Adventurer 0 Explorer 2 Win Type - Total 1 Types 1/0/0/0/0/0/0/0/0 Lore% 54 Gallery% 66 Achievement% 46 Wizard Run 0 Options --------- ASCII 0 Keyboard 0 Movement Arrows Keybinds 1 Fullscreen 0 Font 16/Terminus Map View 76x50 Tactical HUD 1 Map Filters NONE Filters NONE Steam 1 RUN: e0922e0b-1e11-4fe5-9223-efdce0b1d5c3